fUSD/lending_fUSD_20251212
["ID","MTS","AMOUNT","RATE_DAILY","PERIOD"]
[398358485,1765552240527,-5338.23507846,0.00016555,2]
[398358487,1765552240538,-10045.45113752,0.00016555,2]
[398358490,1765552240616,-10842.11217693,0.00016555,2]
[398358491,1765552240628,-574.00000003,0.00016555,2]
[398358492,1765552240639,-16512.62240787,0.00016555,2]
[398358493,1765552240702,-65723.03748034,0.00016555,2]
[398358494,1765552240852,-6310.9068042,0.00016555,2]
[398358499,1765552244217,-23497.74942343,0.00016555,2]
[398358500,1765552244232,-288.12938451,0.00016555,2]
[398358508,1765552305422,1600.0,0.00015782,2]
[398358509,1765552382435,4711.09,0.00015703,2]
[398358511,1765552732694,3380.67305278,0.00015609,2]
[398358512,1765552737351,-320.91701328,0.00015609,2]
[398358513,1765552742957,-209.76780668,0.00015609,2]
[398358514,1765552744120,-291.1381602,0.00015609,2]
[398358515,1765552750216,-320.93184327,0.00015609,2]
[398358516,1765552758416,-239.69996511,0.00015609,2]
[398358517,1765552761382,-151.7580444,0.00015609,2]
[398358518,1765552762825,-242.4627257,0.00015609,2]
[398358519,1765552766607,-312.75093653,0.00015609,2]
[398358520,1765552769287,-219.44061888,0.00015609,2]
[398358521,1765552772933,-302.97834523,0.00015609,2]
[398358522,1765552774046,-247.67156374,0.00015609,2]
[398358523,1765552779193,-288.32770075,0.00015609,2]
[398358524,1765552781378,-280.55938112,0.00015609,2]
[398358525,1765552805518,-187.24405606,0.00015548,3]
[398358526,1765552806970,-215.94235742,0.00015548,3]
[398358527,1765552814010,-49.22358652,0.00015548,3]
[398358528,1765552814041,-177.88103069,0.00015609,2]
[398358529,1765552817623,-102.11896931,0.00015609,2]
[398358530,1765552817646,-63.82402473,0.00015609,2]
[398358531,1765552864921,-247.53843764,0.00015602,2]
[398358533,1765552869318,-195.0,0.00015602,2]
[398358534,1765552871797,-178.48883473,0.00015602,2]
[398358535,1765552877307,-186.75322715,0.00015602,2]
[398358536,1765552887604,-155.86221199,0.00015602,2]
[398358537,1765552910424,-184.55948542,0.00015509,2]
[398358538,1765552917434,-209.68035695,0.00015509,2]
[398358539,1765552918994,-263.98555681,0.00015509,2]
[398358540,1765552926125,-122.70911146,0.00015509,2]
[398358541,1765552926149,-36.35728849,0.00015602,2]
[398358542,1765552926173,-66.42931888,0.00015608,2]
[398358543,1765552928296,-261.63898327,0.00015608,2]
[398358548,1765553329868,-0.2488176,0.00015609,2]
[398358549,1765553329891,-619.26839132,0.00015634,3]
[398358609,1765553388661,180.21,0.00025,30]
[398358610,1765553390521,-1101.84078485,0.00015607,2]
[398358611,1765553392215,-230.23758203,0.00015607,2]
[398358612,1765553397312,-317.19884067,0.00015607,2]
[398358613,1765553400089,-419.67422565,0.00015607,2]
[398358614,1765553406230,-426.03308971,0.00015607,2]
[398358615,1765553413519,-182.65867697,0.00015607,2]
[398358616,1765553416043,-268.6905862,0.00015607,2]
[398358617,1765553422618,-648.06580512,0.00015607,2]
[398358618,1765553425550,-300.0,0.00015607,2]
[398358619,1765553431177,-243.04128463,0.00015607,2]
[398358635,1765553431503,-1001.03239643,0.00015607,2]
[398358636,1765553431513,-379.73160868,0.00015634,3]
[398358637,1765553431523,-283.8037541,0.00015707,2]
[398358638,1765553431533,-195.0,0.00015805,2]
[398358639,1765553431542,-1000.0,0.00015997,3]
[398358640,1765553431551,-1188.11012051,0.00016,2]
[398358641,1765553431561,-166.43,0.00016155,2]
[398358642,1765553431573,-400.0,0.00016199,2]
[398358643,1765553431583,-1200.0,0.00016199,2]
[398358644,1765553431593,-300.0,0.00016199,2]
[398358645,1765553431603,-150.0,0.000162,2]
[398358646,1765553431612,-150.0,0.000162,2]
[398358647,1765553431622,-150.0,0.000162,2]
[398358648,1765553431632,-150.0,0.000162,2]
[398358649,1765553431641,-150.0,0.000162,2]
[398358650,1765553431651,-152.93167974,0.000162,2]
[398358651,1765553431660,-150.0,0.000162,2]
[398358652,1765553431670,-150.0,0.000162,2]
[398358653,1765553431679,-150.0,0.000162,2]
[398358654,1765553431689,-5000.0,0.000162,5]
[398358655,1765553431698,-550.0,0.00016304,2]
[398358656,1765553431708,-300.0,0.00016305,2]
[398358657,1765553431718,-151.0,0.00016305,2]
[398358658,1765553431729,-599.60298507,0.00016305,2]
[398358659,1765553431739,-157.20778052,0.00016305,2]
[398358660,1765553431749,-724.0119094,0.00016305,2]
[398358661,1765553431758,-599.0,0.00016305,2]
[398358662,1765553431768,-200.0,0.00016305,2]
[398358663,1765553431777,-207.4,0.00016305,2]
[398358664,1765553431787,-215.0738,0.00016305,2]
[398358665,1765553431796,-223.0315306,0.00016305,2]
[398358666,1765553431807,-231.28369723,0.00016305,2]
[398358667,1765553431820,-239.84119403,0.00016305,2]
[398358668,1765553431830,-248.71531821,0.00016305,2]
[398358669,1765553431839,-257.91778498,0.00016305,2]
[398358670,1765553431848,-267.46074303,0.00016305,2]
[398358671,1765553431858,-277.35679052,0.00016305,2]
[398358672,1765553431868,-1019.0,0.00016345,2]
[398358673,1765553431878,-36.49501883,0.0001636,2]
[398358674,1765553431890,-339.71408908,0.0001636,2]
[398358675,1765553431902,-222.79089209,0.0001636,2]
[398358676,1765553431912,-425.0,0.00016397,2]
[398358677,1765553431925,-599.0,0.00016415,2]
[398358678,1765553431946,-599.0,0.0001647,2]
[398358679,1765553431965,-599.0,0.00016525,2]
[398358680,1765553431985,-500.0,0.00016534,2]
[398358681,1765553432005,-185.90988395,0.00016534,2]
[398358682,1765553432026,-500.0,0.00016534,2]
[398358683,1765553432044,-11.76922396,0.00016534,2]
[398358684,1765553432070,-488.23077604,0.00016534,2]
[398358685,1765553432091,-431.51969925,0.00016534,2]
[398358686,1765553432111,-500.0,0.00016534,2]
[398358687,1765553432133,-500.0,0.00016534,2]
[398358688,1765553432155,-199.65181053,0.00016534,2]
[398358689,1765553432176,-500.0,0.00016534,2]
[398358690,1765553432197,-500.0,0.00016534,2]
[398358691,1765553432217,-69.59771418,0.00016534,2]
[398358692,1765553432257,-430.40228582,0.00016534,2]
[398358693,1765553432266,-28.61771418,0.00016534,2]
[398358694,1765553432302,-471.38228582,0.00016534,2]
[398358695,1765553432313,-500.0,0.00016534,2]
[398358696,1765553432324,-500.0,0.00016534,2]
[398358697,1765553432334,-500.0,0.00016534,2]
[398358698,1765553432343,-500.0,0.00016534,2]
[398358699,1765553432353,-500.0,0.00016534,2]
[398358700,1765553432362,-500.0,0.00016534,2]
[398358701,1765553432371,-500.0,0.00016534,2]
[398358702,1765553432381,-500.0,0.00016534,2]
[398358703,1765553432390,-500.0,0.00016534,2]
[398358704,1765553432400,-500.0,0.00016534,2]
[398358705,1765553432411,-500.0,0.00016534,2]
[398358706,1765553432423,-500.0,0.00016534,2]
[398358707,1765553432433,-500.0,0.00016534,2]
[398358708,1765553432442,-500.0,0.00016534,2]
[398358709,1765553432452,-500.0,0.00016534,2]
[398358710,1765553432460,-500.0,0.00016534,2]
[398358711,1765553432469,-346.3796023,0.00016534,2]
[398358718,1765553437667,-153.6203977,0.00016534,2]
[398358719,1765553437677,-500.0,0.00016534,2]
[398358720,1765553437686,-74.606211,0.00016534,2]
[398358721,1765553437697,-425.393789,0.00016534,2]
[398358722,1765553437706,-593.55033098,0.00016534,2]
[398358723,1765553437716,-443.46226638,0.00016534,2]
[398358724,1765553437726,-500.0,0.00016534,2]
[398358725,1765553437736,-500.0,0.00016534,2]
[398358726,1765553437747,-500.0,0.00016534,2]
[398358727,1765553437756,-500.0,0.00016534,2]
[398358728,1765553437766,-500.0,0.00016534,2]
[398358729,1765553437775,-500.0,0.00016534,2]
[398358730,1765553437784,-500.0,0.00016534,2]
[398358731,1765553437793,-493.7180296,0.00016534,2]
[398358732,1765553437802,-500.0,0.00016535,2]
[398358733,1765553437811,-1000.0,0.00016535,2]
[398358734,1765553437822,-168.5345601,0.00016535,2]
[398358735,1765553437833,-611.66717302,0.00016535,2]
[398358736,1765553437844,-219.79826688,0.00016535,2]
[398358737,1765553437854,-326.62354535,0.00016535,2]
[398358743,1765553437906,-673.37645465,0.00016535,2]
[398358745,1765553437916,-1000.0,0.00016535,2]
[398358747,1765553437925,-1000.0,0.00016535,2]
[398358749,1765553437934,-250.0,0.00016535,2]
[398358751,1765553437945,-500.0,0.00016535,2]
[398358752,1765553437954,-1000.0,0.00016535,2]
[398358754,1765553437965,-250.0,0.00016535,2]
[398358756,1765553437974,-500.0,0.00016535,2]
[398358758,1765553437984,-1000.0,0.00016535,2]
[398358760,1765553437994,-1000.0,0.00016535,2]
[398358762,1765553438003,-250.0,0.00016535,2]
[398358763,1765553438013,-1000.0,0.00016535,2]
[398358764,1765553438023,-1000.0,0.00016535,2]
[398358765,1765553438032,-250.0,0.00016535,2]
[398358766,1765553438043,-500.0,0.00016535,2]
[398358767,1765553438053,-1000.0,0.00016535,2]
[398358768,1765553438063,-1000.0,0.00016535,2]
[398358769,1765553438076,-250.0,0.00016535,2]
[398358770,1765553438086,-500.0,0.00016535,2]
[398358771,1765553438095,-1000.0,0.00016535,2]
[398358772,1765553438105,-1000.0,0.00016535,2]
[398358773,1765553438115,-250.0,0.00016535,2]
[398358774,1765553438124,-500.0,0.00016535,2]
[398358775,1765553438134,-1000.0,0.00016535,2]
[398358776,1765553438143,-1000.0,0.00016535,2]
[398358777,1765553438153,-250.0,0.00016535,2]
[398358778,1765553438162,-500.0,0.00016535,2]
[398358779,1765553438172,-1000.0,0.00016535,2]
[398358780,1765553438182,-1000.0,0.00016535,2]
[398358781,1765553438192,-200.0,0.00016535,2]
[398358782,1765553438202,-250.0,0.00016535,2]
[398358783,1765553438211,-500.0,0.00016535,2]
[398358784,1765553438220,-1000.0,0.00016535,2]
[398358785,1765553438229,-1000.0,0.00016535,2]
[398358786,1765553438239,-1000.0,0.00016535,2]
[398358787,1765553438249,-250.0,0.00016535,2]
[398358788,1765553438259,-500.0,0.00016535,2]
[398358789,1765553438269,-1000.0,0.00016535,2]
[398358790,1765553438279,-250.0,0.00016535,2]
[398358791,1765553438289,-500.0,0.00016535,2]
[398358792,1765553438298,-500.0,0.00016535,2]
[398358793,1765553438308,-250.0,0.00016535,2]
[398358794,1765553438321,-500.0,0.00016535,2]
[398358795,1765553438331,-1000.0,0.00016535,2]
[398358796,1765553438342,-564.93454937,0.00016535,2]
[398358797,1765553438353,-151.0,0.00016535,2]
[398358798,1765553438363,-500.0,0.00016535,2]
[398358799,1765553438374,-500.0,0.00016535,2]
[398358800,1765553438384,-500.0,0.00016535,2]
[398358801,1765553438395,-500.0,0.00016535,2]
[398358802,1765553438405,-500.0,0.00016535,2]
[398358803,1765553438417,-500.0,0.00016535,2]
[398358804,1765553438427,-500.0,0.00016535,2]
[398358805,1765553438437,-500.0,0.00016535,2]
[398358806,1765553438447,-500.0,0.00016535,2]
[398358807,1765553438458,-500.0,0.00016535,2]
[398358808,1765553438469,-500.0,0.00016535,2]
[398358809,1765553438479,-500.0,0.00016535,2]
[398358810,1765553438490,-500.0,0.00016535,2]
[398358811,1765553438500,-500.0,0.00016535,2]
[398358812,1765553438510,-500.0,0.00016535,2]
[398358813,1765553438520,-500.0,0.00016535,2]
[398358814,1765553438530,-500.0,0.00016535,2]
[398358815,1765553438540,-500.0,0.00016535,2]
[398358816,1765553438550,-500.0,0.00016535,2]
[398358817,1765553438560,-500.0,0.00016535,2]
[398358818,1765553438571,-500.0,0.00016535,2]
[398358819,1765553438581,-500.0,0.00016535,2]
[398358820,1765553438591,-200.0,0.00016535,2]
[398358821,1765553438601,-620.0,0.00016535,2]
[398358822,1765553438611,-602.94574228,0.00016535,2]
[398358823,1765553438622,-200.0,0.00016535,2]
[398358824,1765553438632,-250.0,0.00016535,2]
[398358825,1765553438642,-250.0,0.00016535,2]
[398358826,1765553438652,-151.0,0.00016535,2]
[398358827,1765553438662,-250.0,0.00016535,2]
[398358828,1765553438672,-500.0,0.00016535,2]
[398358829,1765553438681,-250.0,0.00016535,2]
[398358830,1765553438691,-151.0,0.00016535,2]
[398358831,1765553439001,-500.0,0.00016535,2]
[398358832,1765553439013,-250.0,0.00016535,2]
[398358833,1765553439023,-151.0,0.00016535,2]
[398358834,1765553439033,-500.0,0.00016535,2]
[398358835,1765553439043,-250.0,0.00016535,2]
[398358836,1765553439053,-151.0,0.00016535,2]
[398358837,1765553439063,-500.0,0.00016535,2]
[398358838,1765553439076,-151.0,0.00016535,2]
[398358839,1765553439087,-250.0,0.00016535,2]
[398358840,1765553439097,-500.0,0.00016535,2]
[398358841,1765553439106,-151.0,0.00016535,2]
[398358842,1765553439116,-250.0,0.00016535,2]
[398358843,1765553439125,-500.0,0.00016535,2]
[398358844,1765553439135,-151.0,0.00016535,2]
[398358845,1765553439145,-500.0,0.00016535,2]
[398358846,1765553439155,-151.0,0.00016535,2]
[398358847,1765553439165,-500.0,0.00016535,2]
[398358848,1765553439174,-151.0,0.00016535,2]
[398358849,1765553439184,-151.0,0.00016535,2]
[398358850,1765553439194,-500.0,0.00016535,2]
[398358851,1765553439204,-151.0,0.00016535,2]
[398358852,1765553439213,-500.0,0.00016535,2]
[398358853,1765553439223,-151.0,0.00016535,2]
[398358854,1765553439232,-574.12855637,0.00016535,2]
[398358855,1765553439242,-212.0770325,0.00016543,2]
[398358856,1765553439251,-500.0,0.00016543,2]
[398358857,1765553439261,-172.19838601,0.00016543,2]
[398358858,1765553439270,-535.49,0.00016544,2]
[398358859,1765553439280,-3394.710696,0.00016547,2]
[398358860,1765553439289,-499.3996,0.00016553,2]
[398358861,1765553439299,-500.0,0.00016554,2]
[398358862,1765553439308,-500.0,0.00016554,2]
[398358863,1765553439318,-500.0,0.00016554,2]
[398358864,1765553439331,-500.0,0.00016554,2]
[398358865,1765553439341,-500.0,0.00016554,2]
[398358866,1765553439351,-500.0,0.00016554,2]
[398358867,1765553439360,-526.49008822,0.00016554,2]
[398358868,1765553439370,-500.0,0.00016554,2]
[398358869,1765553439380,-500.0,0.00016554,2]
[398358870,1765553439390,-617.66,0.00016554,2]
[398358871,1765553439399,-617.66,0.00016554,2]
[398358872,1765553439408,-1000.0,0.00016554,2]
[398358873,1765553439418,-500.0,0.00016554,2]
[398358874,1765553439427,-599.0,0.0001658,2]
[398358875,1765553439436,-326.27,0.00016582,2]
[398358876,1765553439447,-151.0,0.00016582,2]
[398358877,1765553439456,-151.0,0.00016587,2]
[398358878,1765553439467,-556.0,0.00016612,2]
[398358879,1765553439476,-189.02608897,0.00016621,2]
[398358880,1765553439486,-211.0,0.0001663,2]
[398358881,1765553439496,-805.0,0.00016632,2]
[398358882,1765553439506,-599.0,0.00016635,2]
[398358883,1765553439517,-500.0,0.00016637,2]
[398358884,1765553439527,-500.0,0.00016637,2]
[398358885,1765553439538,-500.0,0.00016637,2]
[398358886,1765553439549,-477.37963964,0.00016637,2]
[398358888,1765553439559,-204.26668636,0.00016655,2]
[398358890,1765553439573,-385.49213265,0.00016655,2]
[398358891,1765553439583,-1513.46625006,0.0001666,2]
[398358892,1765553439592,-1171.0,0.00016672,2]
[398358893,1765553439602,-1309.0,0.00016682,2]
[398358894,1765553439612,-249.0,0.00016682,2]
[398358895,1765553439622,-599.0,0.0001669,2]
[398358896,1765553439632,-599.0,0.00016745,2]
[398358898,1765553439641,-1000.0,0.00016751,2]
[398358900,1765553439651,-599.0,0.000168,2]
[398358902,1765553439661,-1000.0,0.000168,2]
[398358904,1765553439671,-1910.3532,0.000168,2]
[398358906,1765553439680,-535.49,0.00016818,2]
[398358908,1765553439690,-5647.3922644,0.00016851,2]
[398358910,1765553439700,-151.0,0.00016853,2]
[398358912,1765553439710,-599.0,0.00016855,2]
[398358914,1765553439720,-500.0,0.00016899,2]
[398358915,1765553439731,-52658.28992009,0.000169,2]
[398358916,1765553439740,-151.0,0.000169,2]
[398358917,1765553439752,-151.0,0.000169,2]
[398358918,1765553439762,-430.87745745,0.00016905,2]
[398358919,1765553439772,-166.66,0.00016906,2]
[398358920,1765553439782,-500.0,0.00016989,2]
[398358921,1765553439792,-500.0,0.00016999,2]
[398358922,1765553439801,-592.86077097,0.00016999,2]
[398358923,1765553439811,-500.0,0.00016999,2]
[398358924,1765553439824,-500.0,0.00016999,2]
[398358925,1765553439833,-617.66,0.00016999,2]
[398358926,1765553439843,-250.0,0.00017,2]
[398358927,1765553439852,-2000.0,0.00017,2]
[398358928,1765553439862,-176.192875,0.00017,2]
[398358929,1765553439871,-151.0,0.00017,2]
[398358930,1765553439880,-151.0,0.00017,2]
[398358931,1765553439890,-151.0,0.00017,2]
[398358932,1765553439901,-151.0,0.00017,2]
[398358933,1765553439911,-54734.09376741,0.00017,2]
[398358934,1765553439955,-23722.05651881,0.00017,2]
[398358935,1765553439966,-30107.18955824,0.00017,2]
[398358937,1765553440427,-9169.16,0.00017,2]
[398358938,1765553440512,-1000.608,0.00017,2]
[398358939,1765553440523,-1437.73838879,0.00017,2]
[398358940,1765553440534,-1363.68834929,0.00017,2]
[398358941,1765553440545,-699.99999955,0.00017,2]
[398358942,1765553440557,-3488.00000003,0.00017,2]
[398358943,1765553440580,-367.115749,0.00017,2]
[398358944,1765553441120,-1.7e-07,0.00017,2]
[398358945,1765553441168,-935.02219666,0.00017,2]
[398358946,1765553441180,-5481.18,0.00017,2]
[398358947,1765553441191,-9576.1861748,0.00017,2]
[398358952,1765553442612,-284.16209135,0.00017,2]
[398358953,1765553442665,-428.3533,0.00017,2]
[398358954,1765553442706,-991.55570796,0.00017,2]
[398358955,1765553442716,-1029.1723459,0.00017,2]
[398359020,1765553445923,-132735.64808387,0.00017,2]
[398359021,1765553445933,-151.0,0.00017,2]
[398359022,1765553445941,-256.9947551,0.00017,2]
[398359023,1765553445949,-172.86,0.00017005,2]
[398359024,1765553445957,-430.87745739,0.00017047,2]
[398359025,1765553445964,-168.0,0.00017052,2]
[398359026,1765553445974,-694.76645399,0.00017053,2]
[398359027,1765553445985,-621.25282754,0.00017083,2]
[398359028,1765553445996,-200.0,0.00017083,2]
[398359029,1765553446011,-200.0,0.00017083,2]
[398359030,1765553446022,-183.65290616,0.00017083,2]
[398359031,1765553446033,-595.37131296,0.00017083,2]
[398359032,1765553446044,-535.49,0.00017092,2]
[398359033,1765553446054,-168.0,0.00017157,2]
[398359034,1765553446066,-168.0,0.0001717,2]
[398359035,1765553446081,-195.0,0.0001717,2]
[398359036,1765553446091,-150.0,0.0001717,3]
[398359037,1765553446101,-287.32165357,0.0001717,3]
[398359038,1765553446112,-195.0,0.0001717,2]
[398359039,1765553446122,-2500.0,0.0001717,2]
[398359040,1765553446132,-300.0,0.0001717,2]
[398359041,1765553446142,-300.0,0.0001717,2]
[398359042,1765553446152,-250.0,0.0001717,2]
[398359043,1765553446162,-289.8175195,0.0001717,2]
[398359044,1765553446171,-430.87745739,0.00017189,2]
[398359045,1765553446182,-166.66,0.00017234,2]
[398359046,1765553446192,-65116.0,0.000173,2]
[398359047,1765553446202,-168.0,0.00017329,2]
[398359048,1765553446211,-430.87745739,0.00017331,2]
[398359049,1765553446221,-535.49,0.00017366,2]
[398359050,1765553446232,-168.0,0.00017376,2]
[398359051,1765553446242,-1000.0,0.000174,2]
[398359052,1765553446256,-151.0,0.00017401,2]
[398359053,1765553446267,-151.0,0.00017411,2]
[398359054,1765553446278,-151.0,0.00017411,2]
[398359055,1765553446289,-406.0,0.00017412,2]
[398359056,1765553446300,-430.87745739,0.00017474,2]
[398359057,1765553446311,-166.43,0.00017488,2]
[398359058,1765553446322,-500.0,0.00017499,2]
[398359059,1765553446334,-151.0,0.000175,2]
[398359060,1765553446345,-151.0,0.000175,2]
[398359061,1765553446356,-151.0,0.000175,2]
[398359062,1765553446366,-151.29016,0.000175,2]
[398359063,1765553446377,-151.0,0.000175,2]
[398359064,1765553446387,-151.0,0.000175,2]
[398359065,1765553446398,-151.0,0.000175,2]
[398359066,1765553446409,-151.0,0.000175,2]
[398359067,1765553446419,-151.0,0.000175,2]
[398359068,1765553446430,-43733.35291917,0.000175,3]
[398359069,1765553446443,-151.0,0.00017533,2]
[398359070,1765553446454,-279.614661,0.00017533,2]
[398359071,1765553446465,-279.614661,0.00017533,2]
[398359073,1765553446476,-279.614661,0.00017533,2]
[398359075,1765553446487,-279.614661,0.00017533,2]
[398359077,1765553446497,-11260.64758001,0.00017537,2]
[398359079,1765553446508,-1000.0,0.00017553,2]
[398359081,1765553446518,-429.0,0.00017555,2]
[398359083,1765553446529,-151.0,0.00017584,2]
[398359085,1765553446540,-151.0,0.00017584,2]
[398359087,1765553446550,-2200.76402529,0.00017589,2]
[398359112,1765553447111,-671.40126693,0.00017589,2]
[398359114,1765553447123,-482.10758618,0.00017589,2]
[398359115,1765553447135,-2426.88619484,0.00017589,2]
[398359118,1765553447147,-1603.401464,0.00017589,2]
[398359121,1765553447167,-623.85088773,0.00017589,2]
[398359123,1765553447179,-449.17999999,0.00017589,2]
[398359171,1765553826298,375.8,0.00013699,2]
[398359178,1765554005654,10000.0,0.00025,30]
[398359201,1765554193052,762.47,0.00024658,30]
[398359202,1765554319902,-478.97381787,0.00015517,2]
[398359203,1765554325666,-286.60689706,0.00015517,2]
[398359204,1765554328692,-255.54462851,0.00015517,2]
[398359205,1765554342552,-255.62028926,0.00015517,2]
[398359206,1765554344692,-158.0,0.00015517,2]
[398359207,1765554350699,-283.06120495,0.00015517,2]
[398359208,1765554352930,-205.15191396,0.00015517,2]
[398359209,1765554357625,-305.64421677,0.00015517,2]
[398359210,1765554366408,-421.10289153,0.00015517,2]
[398359211,1765554368972,-170.58861104,0.00015517,2]
[398359212,1765554373205,-429.41138896,0.00015517,2]
[398359213,1765554375968,-300.0,0.00015517,2]
[398359214,1765554383670,-232.76978612,0.00015517,2]
[398359215,1765554390032,-190.82813774,0.00015517,2]
[398359216,1765554398539,-257.49636341,0.00015517,2]
[398359217,1765554405068,-151.67549885,0.00015517,2]
[398359218,1765554406627,-195.46669605,0.00015517,2]
[398359219,1765554413205,-143.53765792,0.00015517,2]
[398359220,1765554413231,-151.74424467,0.00015558,2]
[398359290,1765554631595,-22.33073903,0.00015558,2]
[398359292,1765554631606,-300.0,0.00015657,2]
[398359294,1765554631615,-586.52176097,0.00015657,2]
[398359297,1765554631627,-271.00000022,0.00015657,2]
[398359298,1765554631638,-310.0,0.00015657,2]
[398359299,1765554631717,-32.47823881,0.00015657,2]
[398359300,1765554631726,-300.0,0.00015657,2]
[398359301,1765554631736,-150.0,0.00015658,2]
[398359302,1765554631746,-150.0,0.00015658,2]
[398359303,1765554631757,-150.0,0.00015658,2]
[398359304,1765554631766,-123.54176119,0.00015658,2]
[398359305,1765554631794,-26.45823881,0.00015658,2]
[398359306,1765554631804,-150.0,0.00015658,2]
[398359307,1765554631814,-151.14485449,0.00015658,2]
[398359308,1765554631824,-150.0,0.00015658,2]
[398359309,1765554631833,-150.0,0.00015658,2]
[398359310,1765554631843,-150.0,0.00015658,2]
[398359311,1765554631856,-150.0,0.00015658,2]
[398359312,1765554631877,-150.0,0.00015705,2]
[398359313,1765554631901,-170.9,0.00015762,2]
[398359314,1765554631923,-166.66,0.000158,2]
[398359315,1765554631945,-150.0,0.00015947,2]
[398359316,1765554631969,-305.7402194,0.00016025,2]
[398359318,1765554631991,-150.0,0.00016092,2]
[398359320,1765554632017,-150.0,0.00016092,2]
[398359322,1765554632045,-200.0,0.00016125,2]
[398359324,1765554632068,-207.4,0.00016125,2]
[398359326,1765554632091,-215.0738,0.00016125,2]
[398359328,1765554632118,-223.0315306,0.00016125,2]
[398359330,1765554632140,-231.28369723,0.00016125,2]
[398359332,1765554632163,-239.84119403,0.00016125,2]
[398359334,1765554632175,-248.71531821,0.00016125,2]
[398359336,1765554632185,-257.91778498,0.00016125,2]
[398359338,1765554632194,-267.46074303,0.00016125,2]
[398359340,1765554632204,-166.66,0.00016132,2]
[398359342,1765554632217,-300.0,0.00016192,2]
[398359344,1765554632227,-151.0,0.00016192,2]
[398359346,1765554632236,-151.6766623,0.00016192,2]
[398359348,1765554632246,-599.0,0.00016192,2]
[398359350,1765554632258,-380.20710497,0.00016192,2]
[398359351,1765554632268,-1000.0,0.00016199,3]
[398359352,1765554632279,-2641.20070606,0.00016201,2]
[398359353,1765554632291,-150.0,0.00016237,2]
[398359354,1765554632302,-150.0,0.00016237,2]
[398359355,1765554632311,-599.0,0.00016247,2]
[398359356,1765554632321,-599.0,0.00016302,2]
[398359357,1765554632331,-302853.4348,0.00016325,2]
[398359358,1765554632341,-719.727,0.00016334,2]
[398359359,1765554632356,-150.0,0.00016334,2]
[398359360,1765554632366,-1000.0,0.00016335,2]
[398359361,1765554632376,-4093.9021,0.00016335,2]
[398359362,1765554632386,-2500.0,0.00016335,2]
[398359363,1765554632395,-500.0,0.00016337,2]
[398359364,1765554632405,-500.0,0.00016337,2]
[398359365,1765554632415,-500.0,0.00016337,2]
[398359366,1765554632425,-500.0,0.00016337,2]
[398359367,1765554632436,-500.0,0.00016337,2]
[398359368,1765554632446,-367.99908794,0.00016337,2]
[398359369,1765554632455,-170.4253834,0.00016338,2]
[398359370,1765554632465,-10338.9282801,0.00016338,2]
[398359371,1765554632477,-500.0,0.00016338,2]
[398359372,1765554632486,-599.0,0.00016357,2]
[398359373,1765554632496,-599.0,0.00016412,2]
[398359374,1765554632508,-236.93,0.00016425,2]
[398359375,1765554632518,-200.0,0.00016425,2]
[398359376,1765554632528,-500.0,0.00016425,2]
[398359377,1765554632537,-500.0,0.00016425,2]
[398359378,1765554632548,-574.12855637,0.00016425,2]
[398359379,1765554632561,-500.0,0.00016425,2]
[398359380,1765554632571,-500.0,0.00016425,2]
[398359381,1765554632581,-500.0,0.00016425,2]